[Event "Late-Titled-Tuesday-Blitz-June-04-2024"]
[Site "Chess.com"]
[Date "2024.06.04"]
[Round "7"]
[White "Tunahan_Makaraci"]
[Black "lamomiajunior"]
[Result "0-1"]
[WhiteElo "2569"]
[BlackElo "2725"]
[TimeControl "180+1"]
[EndTime "15:15:07 PDT"]
[Termination "lamomiajunior won by resignation"]

1. e4 {[%clk 0:03:00.9]} 1... e5 {[%clk 0:02:58]} 2. Nc3 {[%clk 0:03:00.7]} 2...
Nf6 {[%clk 0:02:55.2]} 3. f4 {[%clk 0:03:01.2]} 3... d6 {[%clk 0:02:48.8]} 4.
Nf3 {[%clk 0:03:00.7]} 4... Nc6 {[%clk 0:02:45.7]} 5. Bb5 {[%clk 0:03:00.4]}
5... exf4 {[%clk 0:02:38.5]} 6. d4 {[%clk 0:02:59.3]} 6... a6 {[%clk 0:02:37.9]}
7. Bxc6+ {[%clk 0:02:59.2]} 7... bxc6 {[%clk 0:02:38.8]} 8. Bxf4 {[%clk
0:02:59.3]} 8... Be7 {[%clk 0:02:38.8]} 9. O-O {[%clk 0:02:59.1]} 9... O-O
{[%clk 0:02:39.4]} 10. Qd2 {[%clk 0:02:58.6]} 10... a5 {[%clk 0:02:37.3]} 11. h3
{[%clk 0:02:47.6]} 11... Be6 {[%clk 0:02:29.5]} 12. Rae1 {[%clk 0:02:45.1]}
12... d5 {[%clk 0:02:25]} 13. e5 {[%clk 0:02:35.4]} 13... Nd7 {[%clk 0:02:25.2]}
14. Bg5 {[%clk 0:02:35.8]} 14... c5 {[%clk 0:02:22.8]} 15. Bxe7 {[%clk
0:02:34.7]} 15... Qxe7 {[%clk 0:02:23.7]} 16. dxc5 {[%clk 0:02:32.9]} 16...
Qxc5+ {[%clk 0:02:24.6]} 17. Qd4 {[%clk 0:02:31.7]} 17... Qxd4+ {[%clk
0:02:20.5]} 18. Nxd4 {[%clk 0:02:31.7]} 18... c5 {[%clk 0:02:21.2]} 19. Nxe6
{[%clk 0:02:10.7]} 19... fxe6 {[%clk 0:02:21.3]} 20. b3 {[%clk 0:02:09.1]} 20...
Rxf1+ {[%clk 0:02:18.3]} 21. Rxf1 {[%clk 0:02:09.2]} 21... Re8 {[%clk
0:02:15.2]} 22. Re1 {[%clk 0:02:04.7]} 22... Kf7 {[%clk 0:02:15.3]} 23. Nd1
{[%clk 0:01:57.5]} 23... Ke7 {[%clk 0:02:15.2]} 24. Nf2 {[%clk 0:01:57.4]} 24...
Rb8 {[%clk 0:02:14]} 25. Nd3 {[%clk 0:01:55.1]} 25... a4 {[%clk 0:02:12.8]} 26.
bxa4 {[%clk 0:01:44.9]} 26... c4 {[%clk 0:02:11.2]} 27. Nf4 {[%clk 0:01:40.9]}
27... Nc5 {[%clk 0:02:08.1]} 28. a5 {[%clk 0:01:31.8]} 28... Ne4 {[%clk
0:02:08]} 29. a6 {[%clk 0:01:27.9]} 29... Nc3 {[%clk 0:02:06]} 30. Re3 {[%clk
0:01:22]} 30... d4 {[%clk 0:01:52.5]} 31. Re4 {[%clk 0:01:13.6]} 31... Rd8
{[%clk 0:01:43.3]} 32. Re1 {[%clk 0:01:09.8]} 32... Ra8 {[%clk 0:01:42.6]} 33.
Ne2 {[%clk 0:01:06.7]} 33... Nxe2+ {[%clk 0:01:40.8]} 34. Rxe2 {[%clk
0:01:07.1]} 34... Rxa6 {[%clk 0:01:41.7]} 35. Re4 {[%clk 0:01:04.1]} 35... Rxa2
{[%clk 0:01:40.2]} 36. Rxd4 {[%clk 0:01:04.1]} 36... Rxc2 {[%clk 0:01:40.8]} 37.
Kh2 {[%clk 0:01:03]} 37... h6 {[%clk 0:01:36.1]} 38. h4 {[%clk 0:01:02.9]} 38...
h5 {[%clk 0:01:35.3]} 39. Kh3 {[%clk 0:01:01.8]} 39... Kf7 {[%clk 0:01:35.4]}
40. Rf4+ {[%clk 0:00:58.7]} 40... Kg6 {[%clk 0:01:35.2]} 41. g4 {[%clk
0:00:57.3]} 41... Rc3+ {[%clk 0:01:31.2]} 42. Kg2 {[%clk 0:00:57]} 42... Rc2+
{[%clk 0:01:28.3]} 43. Kh3 {[%clk 0:00:57.1]} 43... c3 {[%clk 0:01:26]} 44.
gxh5+ {[%clk 0:00:55.5]} 44... Kxh5 {[%clk 0:01:26.9]} 45. Rc4 {[%clk
0:00:51.8]} 45... Kg6 {[%clk 0:01:26.4]} 46. Kg4 {[%clk 0:00:49.5]} 46... Rc1
{[%clk 0:01:24.4]} 47. h5+ {[%clk 0:00:27.6]} 47... Kh6 {[%clk 0:01:24.2]} 48.
Rc8 {[%clk 0:00:28.3]} 48... Kh7 {[%clk 0:01:23.7]} 49. Kg3 {[%clk 0:00:17.3]}
49... c2 {[%clk 0:01:22.4]} 50. Kg2 {[%clk 0:00:17.5]} 50... Kh6 {[%clk
0:01:21.3]} 51. Kh2 {[%clk 0:00:16.4]} 51... Kxh5 {[%clk 0:01:21.2]} 52. Kg2
{[%clk 0:00:16.8]} 52... Kg5 {[%clk 0:01:21.6]} 53. Rc5 {[%clk 0:00:16.7]} 53...
Kf5 {[%clk 0:01:22]} 54. Kh2 {[%clk 0:00:16.6]} 54... Ke4 {[%clk 0:01:22.2]} 55.
Kg2 {[%clk 0:00:16.9]} 55... Kd3 {[%clk 0:01:22.7]} 0-1

[Event "Late-Titled-Tuesday-Blitz-June-04-2024"]
[Site "Chess.com"]
[Date "2024.06.04"]
[Round "7"]
[White "Chigorinetz"]
[Black "AlphaPerseii"]
[Result "1-0"]
[WhiteElo "2548"]
[BlackElo "2348"]
[TimeControl "180+1"]
[EndTime "15:15:09 PDT"]
[Termination "Chigorinetz won by resignation"]

1. e4 {[%clk 0:03:00.9]} 1... c5 {[%clk 0:02:59.4]} 2. Nc3 {[%clk 0:03:00.1]}
2... Nc6 {[%clk 0:02:58.4]} 3. Nge2 {[%clk 0:02:59.9]} 3... Nf6 {[%clk 0:02:56]}
4. g3 {[%clk 0:02:58.6]} 4... e5 {[%clk 0:02:55.4]} 5. Bg2 {[%clk 0:02:57.6]}
5... Be7 {[%clk 0:02:54.8]} 6. O-O {[%clk 0:02:57.3]} 6... d6 {[%clk 0:02:51.4]}
7. Nd5 {[%clk 0:02:57.4]} 7... Bg4 {[%clk 0:02:40.3]} 8. c3 {[%clk 0:02:56.3]}
8... Qd7 {[%clk 0:02:23.6]} 9. f3 {[%clk 0:02:55]} 9... Bh3 {[%clk 0:02:22.4]}
10. Nxe7 {[%clk 0:02:53.9]} 10... Bxg2 {[%clk 0:02:00.2]} 11. Kxg2 {[%clk
0:02:48.9]} 11... Qxe7 {[%clk 0:01:58.3]} 12. d4 {[%clk 0:02:49.1]} 12... exd4
{[%clk 0:01:40.6]} 13. cxd4 {[%clk 0:02:47.1]} 13... O-O {[%clk 0:01:41.2]} 14.
d5 {[%clk 0:02:23.8]} 14... Ne5 {[%clk 0:01:36.5]} 15. b3 {[%clk 0:02:23.1]}
15... Nfd7 {[%clk 0:01:29.3]} 16. g4 {[%clk 0:02:17]} 16... Ng6 {[%clk
0:01:19.4]} 17. Ng3 {[%clk 0:02:09.5]} 17... Qe5 {[%clk 0:01:15.6]} 18. Rb1
{[%clk 0:02:04.6]} 18... Nf4+ {[%clk 0:01:14.1]} 19. Kh1 {[%clk 0:01:57.8]}
19... b5 {[%clk 0:01:05.1]} 20. Qd2 {[%clk 0:01:53]} 20... Ng6 {[%clk
0:00:37.1]} 21. Bb2 {[%clk 0:01:36.5]} 21... Qf4 {[%clk 0:00:33.9]} 22. Qxf4
{[%clk 0:01:34.6]} 22... Nxf4 {[%clk 0:00:34.8]} 23. Nf5 {[%clk 0:01:34.6]}
23... a6 {[%clk 0:00:26.9]} 24. Bxg7 {[%clk 0:01:32.3]} 24... Rfd8 {[%clk
0:00:21.3]} 25. Bh6 {[%clk 0:01:31.3]} 25... Ne2 {[%clk 0:00:17.5]} 26. Nxd6
{[%clk 0:01:20.8]} 26... Nc3 {[%clk 0:00:14.9]} 27. Rb2 {[%clk 0:01:17.4]} 27...
Ne5 {[%clk 0:00:14.4]} 28. Nf5 {[%clk 0:01:13.6]} 28... b4 {[%clk 0:00:13.2]}
29. Ne7+ {[%clk 0:00:58.1]} 29... Kh8 {[%clk 0:00:13]} 30. Bg5 {[%clk
0:00:58.5]} 30... Nd7 {[%clk 0:00:08.9]} 31. Nc6 {[%clk 0:00:56.6]} 31... Re8
{[%clk 0:00:07.7]} 32. Rd2 {[%clk 0:00:54.4]} 32... f6 {[%clk 0:00:07.3]} 33.
Bh4 {[%clk 0:00:52.3]} 33... Rac8 {[%clk 0:00:07.3]} 34. g5 {[%clk 0:00:47.5]}
34... fxg5 {[%clk 0:00:04.1]} 35. Bxg5 {[%clk 0:00:47.7]} 35... Ne5 {[%clk
0:00:04.3]} 1-0

[Event "Late-Titled-Tuesday-Blitz-June-04-2024"]
[Site "Chess.com"]
[Date "2024.06.04"]
[Round "7"]
[White "eljanov"]
[Black "Duhless"]
[Result "1-0"]
[WhiteElo "2949"]
[BlackElo "3100"]
[TimeControl "180+1"]
[EndTime "15:15:10 PDT"]
[Termination "eljanov won by resignation"]

1. d4 {[%clk 0:03:00.9]} 1... Nf6 {[%clk 0:02:59.7]} 2. c4 {[%clk 0:03:00.6]}
2... g6 {[%clk 0:02:59.4]} 3. Nc3 {[%clk 0:03:00.9]} 3... Bg7 {[%clk 0:02:59.5]}
4. e4 {[%clk 0:03:01.1]} 4... d6 {[%clk 0:03:00.1]} 5. h3 {[%clk 0:03:01.3]}
5... O-O {[%clk 0:03:00.6]} 6. Be3 {[%clk 0:03:01.8]} 6... Re8 {[%clk
0:02:58.5]} 7. Nf3 {[%clk 0:02:55.3]} 7... Nc6 {[%clk 0:02:57.8]} 8. d5 {[%clk
0:02:49]} 8... Nb4 {[%clk 0:02:57.7]} 9. a3 {[%clk 0:02:43.6]} 9... Na6 {[%clk
0:02:57.8]} 10. Be2 {[%clk 0:02:43.1]} 10... e6 {[%clk 0:02:57.5]} 11. Qc2
{[%clk 0:02:42.3]} 11... exd5 {[%clk 0:02:56.3]} 12. cxd5 {[%clk 0:02:39.7]}
12... Nc5 {[%clk 0:02:56.3]} 13. Bxc5 {[%clk 0:02:32]} 13... dxc5 {[%clk
0:02:57.2]} 14. O-O {[%clk 0:02:32.4]} 14... Nh5 {[%clk 0:02:46.1]} 15. Rfe1
{[%clk 0:02:30.3]} 15... c6 {[%clk 0:02:41.4]} 16. Rad1 {[%clk 0:02:28.4]} 16...
Bxc3 {[%clk 0:02:08.4]} 17. Qxc3 {[%clk 0:02:11.2]} 17... Nf4 {[%clk 0:02:03.9]}
18. Bf1 {[%clk 0:02:08.5]} 18... cxd5 {[%clk 0:02:01]} 19. exd5 {[%clk
0:02:04.7]} 19... Rxe1 {[%clk 0:01:49.2]} 20. Qxe1 {[%clk 0:01:57]} 20... Qd6
{[%clk 0:01:35.5]} 21. Qe8+ {[%clk 0:01:51.3]} 21... Kg7 {[%clk 0:01:29.5]} 22.
Ng5 {[%clk 0:01:25.4]} 22... Qf6 {[%clk 0:00:49.1]} 23. Ne4 {[%clk 0:01:25]}
23... Qxb2 {[%clk 0:00:40.1]} 24. d6 {[%clk 0:01:25.3]} 24... Bg4 {[%clk
0:00:06.2]} 25. Qxa8 {[%clk 0:01:14.1]} 25... Bxd1 {[%clk 0:00:06.1]} 26. d7
{[%clk 0:01:14.4]} 26... Ne6 {[%clk 0:00:05.8]} 27. Ng5 {[%clk 0:01:03.9]} 27...
Nxg5 {[%clk 0:00:02.1]} 28. d8=Q {[%clk 0:01:03.8]} 28... Kh6 {[%clk 0:00:02.4]}
29. h4 {[%clk 0:00:54.8]} 29... Ne4 {[%clk 0:00:02.1]} 30. Qf8+ {[%clk
0:00:46.8]} 30... Kh5 {[%clk 0:00:02.5]} 31. Qxf7 {[%clk 0:00:47.2]} 31... h6
{[%clk 0:00:02.4]} 32. Qae8 {[%clk 0:00:43.5]} 1-0

[Event "Late-Titled-Tuesday-Blitz-June-04-2024"]
[Site "Chess.com"]
[Date "2024.06.04"]
[Round "7"]
[White "Godzillator"]
[Black "malti"]
[Result "1-0"]
[WhiteElo "2413"]
[BlackElo "2128"]
[TimeControl "180+1"]
[EndTime "15:15:10 PDT"]
[Termination "Godzillator won by resignation"]

1. e4 {[%clk 0:03:00.9]} 1... c5 {[%clk 0:02:59.6]} 2. Nc3 {[%clk 0:02:59.3]}
2... Nc6 {[%clk 0:02:59.6]} 3. g3 {[%clk 0:02:58.9]} 3... g6 {[%clk 0:03:00.1]}
4. Bg2 {[%clk 0:02:59.3]} 4... Bg7 {[%clk 0:03:00.7]} 5. Nge2 {[%clk 0:02:59.7]}
5... e6 {[%clk 0:03:00.6]} 6. O-O {[%clk 0:02:59.9]} 6... Nge7 {[%clk
0:03:01.1]} 7. f4 {[%clk 0:03:00.2]} 7... O-O {[%clk 0:03:01.1]} 8. d3 {[%clk
0:02:59.5]} 8... b6 {[%clk 0:02:58.5]} 9. Be3 {[%clk 0:02:58.5]} 9... Bb7 {[%clk
0:02:58.1]} 10. Qd2 {[%clk 0:02:58.8]} 10... d5 {[%clk 0:02:47.2]} 11. exd5
{[%clk 0:02:58.4]} 11... Nxd5 {[%clk 0:02:46.1]} 12. Bf2 {[%clk 0:02:54.2]}
12... Nxc3 {[%clk 0:02:42.5]} 13. bxc3 {[%clk 0:02:51.2]} 13... Qc7 {[%clk
0:02:40.4]} 14. Rae1 {[%clk 0:02:48.2]} 14... Ne7 {[%clk 0:02:40.2]} 15. c4
{[%clk 0:02:46.9]} 15... Bxg2 {[%clk 0:02:39.5]} 16. Kxg2 {[%clk 0:02:47.7]}
16... Qc6+ {[%clk 0:02:37.6]} 17. Kg1 {[%clk 0:02:47.4]} 17... Nf5 {[%clk
0:02:38]} 18. g4 {[%clk 0:02:42.3]} 18... Nd4 {[%clk 0:02:38]} 19. Nxd4 {[%clk
0:02:41.9]} 19... Bxd4 {[%clk 0:02:34.4]} 20. Bxd4 {[%clk 0:02:41.2]} 20... cxd4
{[%clk 0:02:35.3]} 21. f5 {[%clk 0:02:39.7]} 21... exf5 {[%clk 0:02:32.6]} 22.
gxf5 {[%clk 0:02:39.9]} 22... Rae8 {[%clk 0:02:32]} 23. f6 {[%clk 0:02:35.4]}
23... Rxe1 {[%clk 0:02:31.4]} 24. Qxe1 {[%clk 0:02:35.8]} 24... Re8 {[%clk
0:02:17.6]} 25. Qh4 {[%clk 0:02:32.9]} 25... Re2 {[%clk 0:02:07.3]} 26. Qg3
{[%clk 0:02:19.6]} 26... Qe8 {[%clk 0:01:58.4]} 27. Rf2 {[%clk 0:02:13.3]} 27...
Re1+ {[%clk 0:01:54.4]} 28. Kg2 {[%clk 0:02:13.7]} 28... h5 {[%clk 0:01:43.6]}
29. Qf4 {[%clk 0:02:04.4]} 29... Qe3 {[%clk 0:01:34.9]} 30. Qxe3 {[%clk
0:02:01]} 30... dxe3 {[%clk 0:01:24.2]} 31. Rf4 {[%clk 0:02:01]} 31... Re2+
{[%clk 0:01:23.5]} 32. Kf3 {[%clk 0:02:01.2]} 32... Rxh2 {[%clk 0:01:13.5]} 33.
Kxe3 {[%clk 0:02:01.3]} 33... Rxc2 {[%clk 0:01:13.5]} 34. Kd4 {[%clk 0:01:49.1]}
34... Kf8 {[%clk 0:01:06.1]} 35. Kd5 {[%clk 0:01:48.7]} 35... Ke8 {[%clk
0:00:28.8]} 36. d4 {[%clk 0:01:46.8]} 36... Kd7 {[%clk 0:00:26.6]} 37. Re4
{[%clk 0:01:47.1]} 37... Rf2 {[%clk 0:00:17.5]} 38. Re7+ {[%clk 0:01:46.8]}
38... Kd8 {[%clk 0:00:17.9]} 39. Rxf7 {[%clk 0:01:47.1]} 39... Rf5+ {[%clk
0:00:17.7]} 40. Ke6 {[%clk 0:01:41.6]} 40... h4 {[%clk 0:00:16.8]} 41. Rxa7
{[%clk 0:01:38]} 41... h3 {[%clk 0:00:15.7]} 42. Ra8+ {[%clk 0:01:38.2]} 42...
Kc7 {[%clk 0:00:15.7]} 43. Rh8 {[%clk 0:01:38.2]} 43... Rh5 {[%clk 0:00:12.5]}
44. Rxh5 {[%clk 0:01:38.1]} 44... gxh5 {[%clk 0:00:13.1]} 45. f7 {[%clk
0:01:39]} 45... h2 {[%clk 0:00:13.5]} 46. f8=Q {[%clk 0:01:39.4]} 46... h1=Q
{[%clk 0:00:14]} 47. Qd6+ {[%clk 0:01:38.5]} 47... Kb7 {[%clk 0:00:14.1]} 48.
Qd5+ {[%clk 0:01:38.3]} 48... Qxd5+ {[%clk 0:00:13.7]} 49. Kxd5 {[%clk
0:01:34.5]} 49... Kc7 {[%clk 0:00:13.9]} 50. Ke5 {[%clk 0:01:34.5]} 50... Kc6
{[%clk 0:00:13.1]} 51. a4 {[%clk 0:01:32.6]} 51... Kd7 {[%clk 0:00:10.2]} 52.
Kf5 {[%clk 0:01:32.7]} 52... Kd6 {[%clk 0:00:10.6]} 53. Kg5 {[%clk 0:01:33.2]}
53... Ke6 {[%clk 0:00:10.2]} 54. Kxh5 {[%clk 0:01:33.5]} 54... Kf5 {[%clk
0:00:11.1]} 55. d5 {[%clk 0:01:32.8]} 55... Ke5 {[%clk 0:00:11]} 56. Kg6 {[%clk
0:01:32.7]} 56... Kd6 {[%clk 0:00:11.1]} 57. Kf7 {[%clk 0:01:32.9]} 57... Kc5
{[%clk 0:00:11.7]} 58. Ke7 {[%clk 0:01:33.1]} 58... Kxc4 {[%clk 0:00:11.9]} 59.
d6 {[%clk 0:01:33.6]} 59... Kb4 {[%clk 0:00:12.8]} 60. d7 {[%clk 0:01:34]} 60...
Kxa4 {[%clk 0:00:13.7]} 61. d8=Q {[%clk 0:01:34.4]} 61... b5 {[%clk 0:00:14.6]}
62. Kd6 {[%clk 0:01:33.8]} 1-0

[Event "Late-Titled-Tuesday-Blitz-June-04-2024"]
[Site "Chess.com"]
[Date "2024.06.04"]
[Round "7"]
[White "Flawless_Fighter"]
[Black "hansen"]
[Result "1-0"]
[WhiteElo "2692"]
[BlackElo "3022"]
[TimeControl "180+1"]
[EndTime "15:15:11 PDT"]
[Termination "Flawless_Fighter won on time"]

1. e4 {[%clk 0:02:53.2]} 1... e5 {[%clk 0:02:56.8]} 2. Nf3 {[%clk 0:02:53]} 2...
Nc6 {[%clk 0:02:57]} 3. Nc3 {[%clk 0:02:53.3]} 3... Nf6 {[%clk 0:02:45.2]} 4. d4
{[%clk 0:02:52.4]} 4... exd4 {[%clk 0:02:43]} 5. Nxd4 {[%clk 0:02:53.3]} 5...
Bb4 {[%clk 0:02:43]} 6. Nxc6 {[%clk 0:02:53.5]} 6... bxc6 {[%clk 0:02:43]} 7.
Bd3 {[%clk 0:02:54.2]} 7... d5 {[%clk 0:02:41]} 8. exd5 {[%clk 0:02:54.6]} 8...
O-O {[%clk 0:02:41.7]} 9. O-O {[%clk 0:02:54.7]} 9... cxd5 {[%clk 0:02:42.2]}
10. h3 {[%clk 0:02:52.7]} 10... c6 {[%clk 0:02:37.8]} 11. Qf3 {[%clk 0:02:52.5]}
11... h6 {[%clk 0:02:28]} 12. Bf4 {[%clk 0:02:49.3]} 12... Be6 {[%clk
0:02:17.5]} 13. Ne2 {[%clk 0:02:46]} 13... Re8 {[%clk 0:02:16.3]} 14. Nd4 {[%clk
0:02:42.3]} 14... Bd7 {[%clk 0:02:16.2]} 15. c3 {[%clk 0:02:36.9]} 15... Bf8
{[%clk 0:02:14]} 16. Rfe1 {[%clk 0:02:35.4]} 16... Qb6 {[%clk 0:02:03.1]} 17. b3
{[%clk 0:02:31.5]} 17... c5 {[%clk 0:01:54.3]} 18. Nf5 {[%clk 0:02:27.5]} 18...
Kh8 {[%clk 0:01:22.1]} 19. Be5 {[%clk 0:02:17.3]} 19... Ne4 {[%clk 0:01:16.9]}
20. Qf4 {[%clk 0:01:33]} 20... Rxe5 {[%clk 0:00:15.5]} 21. Qxe5 {[%clk
0:01:21.9]} 21... Nf6 {[%clk 0:00:10.4]} 22. Rad1 {[%clk 0:01:12.1]} 22... Be6
{[%clk 0:00:09.3]} 23. Nxh6 {[%clk 0:01:07.6]} 23... Nd7 {[%clk 0:00:08]} 24.
Nxf7+ {[%clk 0:00:50.5]} 24... Bxf7 {[%clk 0:00:08]} 25. Qf5 {[%clk 0:00:51]}
25... Nf6 {[%clk 0:00:08.5]} 26. Re3 {[%clk 0:00:50]} 26... g6 {[%clk
0:00:06.1]} 27. Qg5 {[%clk 0:00:48.5]} 27... Nh7 {[%clk 0:00:02.2]} 28. Qf4
{[%clk 0:00:44.6]} 28... Qf6 {[%clk 0:00:02]} 29. Qg4 {[%clk 0:00:37.2]} 29...
Qg5 {[%clk 0:00:01.8]} 30. Qd7 {[%clk 0:00:32.3]} 1-0

[Event "Late-Titled-Tuesday-Blitz-June-04-2024"]
[Site "Chess.com"]
[Date "2024.06.04"]
[Round "7"]
[White "Shankland"]
[Black "dretch"]
[Result "1-0"]
[WhiteElo "2973"]
[BlackElo "2864"]
[TimeControl "180+1"]
[EndTime "15:15:15 PDT"]
[Termination "Shankland won on time"]

1. Nf3 {[%clk 0:03:00.9]} 1... d5 {[%clk 0:02:58.6]} 2. e3 {[%clk 0:02:59.5]}
2... Bg4 {[%clk 0:02:56.9]} 3. c4 {[%clk 0:02:59.4]} 3... c6 {[%clk 0:02:56.8]}
4. cxd5 {[%clk 0:02:57.5]} 4... cxd5 {[%clk 0:02:55.2]} 5. Qb3 {[%clk 0:02:58]}
5... Qc7 {[%clk 0:02:52.5]} 6. Nc3 {[%clk 0:02:55.8]} 6... Bxf3 {[%clk
0:02:52.6]} 7. gxf3 {[%clk 0:02:55.3]} 7... e6 {[%clk 0:02:53.1]} 8. d4 {[%clk
0:02:50.5]} 8... Nc6 {[%clk 0:02:52.3]} 9. Bd2 {[%clk 0:02:50.6]} 9... Nf6
{[%clk 0:02:50.9]} 10. Rc1 {[%clk 0:02:48]} 10... Be7 {[%clk 0:02:50.3]} 11. Bd3
{[%clk 0:02:41.1]} 11... O-O {[%clk 0:02:48.4]} 12. f4 {[%clk 0:02:41.1]} 12...
Rfc8 {[%clk 0:02:41.6]} 13. Rg1 {[%clk 0:02:38.1]} 13... Na5 {[%clk 0:02:35.6]}
14. Qc2 {[%clk 0:02:17]} 14... Nc4 {[%clk 0:02:27.9]} 15. Ke2 {[%clk 0:02:17]}
15... Qd7 {[%clk 0:02:21.2]} 16. Rg3 {[%clk 0:02:01.3]} 16... b5 {[%clk
0:02:14.5]} 17. Rcg1 {[%clk 0:02:00.3]} 17... Bf8 {[%clk 0:02:14.7]} 18. Qb1
{[%clk 0:01:30]} 18... b4 {[%clk 0:01:51.1]} 19. Nd1 {[%clk 0:01:29.8]} 19...
Rab8 {[%clk 0:01:32.9]} 20. Bc1 {[%clk 0:01:10.6]} 20... b3 {[%clk 0:01:29.9]}
21. Nc3 {[%clk 0:01:07.6]} 21... Qc7 {[%clk 0:01:11.3]} 22. f3 {[%clk
0:00:54.2]} 22... Qa5 {[%clk 0:00:55.9]} 23. a4 {[%clk 0:00:50.6]} 23... Na3
{[%clk 0:00:42.8]} 24. bxa3 {[%clk 0:00:47.1]} 24... Qxc3 {[%clk 0:00:42.8]} 25.
Bb2 {[%clk 0:00:44.7]} 25... Qc6 {[%clk 0:00:28.3]} 26. Qf1 {[%clk 0:00:40.6]}
26... g6 {[%clk 0:00:09.6]} 27. Qg2 {[%clk 0:00:33.3]} 27... Kh8 {[%clk
0:00:06.1]} 28. Rh3 {[%clk 0:00:29.8]} 28... Qxa4 {[%clk 0:00:05]} 29. Bxg6
{[%clk 0:00:27.5]} 1-0

[Event "Late-Titled-Tuesday-Blitz-June-04-2024"]
[Site "Chess.com"]
[Date "2024.06.04"]
[Round "7"]
[White "Sacbutt"]
[Black "harshu27"]
[Result "0-1"]
[WhiteElo "2338"]
[BlackElo "2541"]
[TimeControl "180+1"]
[EndTime "15:15:18 PDT"]
[Termination "harshu27 won by resignation"]

1. e4 {[%clk 0:03:00.9]} 1... c5 {[%clk 0:02:59.7]} 2. Nc3 {[%clk 0:02:59.7]}
2... d6 {[%clk 0:02:59.5]} 3. g3 {[%clk 0:03:00.1]} 3... Nc6 {[%clk 0:03:00.2]}
4. Bg2 {[%clk 0:03:00.5]} 4... g6 {[%clk 0:03:00.6]} 5. d3 {[%clk 0:03:01]} 5...
Bg7 {[%clk 0:03:01.1]} 6. Nge2 {[%clk 0:03:01.5]} 6... e5 {[%clk 0:03:01.2]} 7.
Be3 {[%clk 0:03:01.8]} 7... Nge7 {[%clk 0:02:59.9]} 8. Qd2 {[%clk 0:03:01.9]}
8... Be6 {[%clk 0:03:00.1]} 9. Bh6 {[%clk 0:03:01.3]} 9... Bxh6 {[%clk
0:02:54.3]} 10. Qxh6 {[%clk 0:03:00.7]} 10... Qb6 {[%clk 0:02:54.3]} 11. Rb1
{[%clk 0:02:50.4]} 11... O-O-O {[%clk 0:02:51.4]} 12. O-O {[%clk 0:02:47]} 12...
Nd4 {[%clk 0:02:45.7]} 13. Qd2 {[%clk 0:02:43.8]} 13... h5 {[%clk 0:02:41.1]}
14. h4 {[%clk 0:02:39.8]} 14... Rdg8 {[%clk 0:02:33.7]} 15. Nxd4 {[%clk
0:02:34.1]} 15... cxd4 {[%clk 0:02:23.1]} 16. Nd5 {[%clk 0:02:33.8]} 16... Bxd5
{[%clk 0:02:12.7]} 17. exd5 {[%clk 0:02:34.7]} 17... f6 {[%clk 0:02:12.5]} 18.
c3 {[%clk 0:02:28.9]} 18... g5 {[%clk 0:02:09.4]} 19. hxg5 {[%clk 0:02:27.7]}
19... Rxg5 {[%clk 0:02:07.6]} 20. cxd4 {[%clk 0:02:27]} 20... Qxd4 {[%clk
0:02:03.4]} 21. Rbc1+ {[%clk 0:02:24.7]} 21... Kb8 {[%clk 0:02:01.5]} 22. Rc4
{[%clk 0:02:24.3]} 22... Qb6 {[%clk 0:02:00.7]} 23. d4 {[%clk 0:02:17.9]} 23...
Rg4 {[%clk 0:01:37.6]} 24. Rd1 {[%clk 0:01:56.3]} 24... Nf5 {[%clk 0:01:33.3]}
25. Rb4 {[%clk 0:01:44.6]} 25... Rxd4 {[%clk 0:00:49.5]} 26. Rxb6 {[%clk
0:01:43.1]} 26... Rxd2 {[%clk 0:00:49.5]} 27. Rxb7+ {[%clk 0:01:42.8]} 27...
Kxb7 {[%clk 0:00:50.4]} 28. Rxd2 {[%clk 0:01:43]} 28... h4 {[%clk 0:00:50.4]}
29. g4 {[%clk 0:01:29.1]} 29... Nd4 {[%clk 0:00:48.7]} 30. Be4 {[%clk
0:01:24.8]} 30... Rg8 {[%clk 0:00:44.8]} 31. f3 {[%clk 0:01:21.2]} 31... f5
{[%clk 0:00:44.8]} 32. Rxd4 {[%clk 0:01:21.2]} 32... exd4 {[%clk 0:00:41.5]} 33.
Bxf5 {[%clk 0:01:21.4]} 33... Kb6 {[%clk 0:00:31.6]} 34. Kg2 {[%clk 0:01:08.4]}
34... Kc5 {[%clk 0:00:29.3]} 35. Kh3 {[%clk 0:01:02.9]} 35... Rh8 {[%clk
0:00:11.2]} 36. Be4 {[%clk 0:00:59.3]} 36... Kc4 {[%clk 0:00:10.3]} 37. f4
{[%clk 0:00:59.5]} 37... d3 {[%clk 0:00:10.8]} 38. g5 {[%clk 0:00:58.2]} 38...
d2 {[%clk 0:00:11]} 39. Bf3 {[%clk 0:00:58.5]} 39... Kd4 {[%clk 0:00:10.1]} 40.
g6 {[%clk 0:00:53.7]} 40... Ke3 {[%clk 0:00:09.6]} 41. Bd1 {[%clk 0:00:52.2]}
41... Kxf4 {[%clk 0:00:08.7]} 42. g7 {[%clk 0:00:50.9]} 42... Rg8 {[%clk
0:00:09.2]} 0-1